bitfinex-derivatives/quotes_SOLF0:USTF0_20251025
["timestamp","ask_amount","ask_price","bid_price","bid_amount"]
[1761378033772,1.82525464,194.08,193.99,2.63]
[1761378034370,0.33,194.08,194.0,2.63]
[1761378034571,4.5870103,194.11,194.01,2.63]
[1761378034572,1.49525464,194.09,194.01,2.63]
[1761378035280,3.80888688,194.1,194.01,2.63]
[1761378035579,1.49525464,194.09,194.01,2.63]
[1761378035878,1.49525464,194.09,194.02,2.63]
[1761378037881,0.33,194.1,194.02,2.63]
[1761378039380,0.33,194.1,194.02,4.6378]
[1761378039583,0.33,194.1,194.03,2.67]
[1761378041484,1.49525464,194.09,194.03,2.67]
[1761378042475,3.80888688,194.13,193.99,2.67]
[1761378042476,0.33,194.05,193.99,2.67]
[1761378042674,3.80888688,194.12,193.95,2.67]
[1761378042675,0.33,194.02,193.95,2.67]
[1761378043985,0.33,194.02,193.96,2.67]
[1761378048282,1.49525464,194.0,193.96,2.67]
[1761378048586,1.82525464,194.0,193.96,2.67]
[1761378049192,0.33,193.99,193.96,2.67]
[1761378049386,0.33,193.99,193.93,2.67]
[1761378050287,3.80888688,194.04,193.93,2.67]
[1761378050288,0.33,193.96,193.93,2.67]
[1761378050486,1.49525464,193.97,193.93,2.67]
[1761378052690,1.82525464,193.97,193.93,2.67]
[1761378053992,0.33,194.0,193.93,2.67]
[1761378054195,1.82525464,194.0,193.93,2.67]
[1761378066110,76.23571923,194.03,193.94,2.61]
[1761378066606,76.23571923,194.03,193.96,2.61]
[1761378069407,75.90571923,194.03,193.96,2.61]
[1761378069608,0.33,194.02,193.96,2.61]
[1761378069999,0.33,194.0,193.96,2.61]
[1761378070802,0.33,194.0,193.92,1.49525464]
[1761378070803,0.33,193.98,193.92,2.62]
[1761378072612,1.82525464,193.96,193.92,2.62]
[1761378078916,0.33,193.95,193.92,2.62]
[1761378079714,1.82525464,193.96,193.92,2.62]
[1761378081705,1.49525464,193.96,193.92,2.62]
[1761378084717,1.82525464,193.96,193.92,2.62]
[1761378085115,1.49525464,193.98,193.93,2.62]
[1761378085813,1.82525464,193.98,193.93,2.62]
[1761378086722,0.33,193.98,193.93,2.62]
[1761378087523,4.14991624,193.98,193.93,2.62]
[1761378087724,0.33,193.98,193.93,2.62]
[1761378088115,4.14991624,193.98,193.93,2.62]
[1761378088319,0.33,193.98,193.93,2.62]
[1761378088719,4.16457186,193.97,193.93,2.62]
[1761378088920,0.33,193.97,193.93,2.62]
[1761378089822,0.33,194.0,193.93,2.62]
[1761378090020,3.83560963,193.99,193.93,2.62]
[1761378090328,4.16560963,193.98,193.93,2.62]
[1761378090631,4.4672533,194.01,193.93,2.62]
[1761378090632,4.16669103,193.97,193.93,2.62]
[1761378090930,0.33,193.97,193.93,2.62]
[1761378092527,3.85186252,193.96,193.93,2.62]
[1761378092732,4.18181103,193.95,193.93,2.62]
[1761378092927,0.33,193.95,193.93,2.62]
[1761378097941,0.33,193.95,193.89,2.76]
[1761378099140,3.85106546,193.94,193.89,2.76]
[1761378099334,0.33,193.94,193.89,2.76]
[1761378103346,3.84882246,193.93,193.89,2.76]
[1761378103542,3.84882246,193.92,193.89,2.76]
[1761378103842,3.84897585,193.93,193.89,2.76]
[1761378104042,6.77378261,193.96,193.84,2.76]
[1761378104043,0.33,193.91,193.84,2.76]
[1761378104444,3.84732504,193.9,193.84,2.76]
[1761378105239,0.33,193.91,193.84,2.76]
[1761378105838,0.33,193.89,193.81,2.76]
[1761378106042,3.84538372,193.88,193.81,2.76]
[1761378106345,0.33,193.88,193.81,2.76]
[1761378107536,4.17538372,193.88,193.81,2.76]
[1761378107741,0.33,193.88,193.81,2.76]
[1761378107943,4.17538372,193.88,193.81,2.76]
[1761378108142,0.33,193.88,193.81,2.76]
[1761378112750,4.17538372,193.91,193.81,2.76]
[1761378112944,0.33,193.91,193.81,2.76]
[1761378113644,0.33,193.91,193.83,2.76]
[1761378120958,0.34,193.93,193.83,2.76]
[1761378121157,3.84538372,193.93,193.83,2.76]
[1761378121358,0.34,193.92,193.83,2.76]
[1761378122159,0.34,193.92,193.84,2.75]
[1761378129362,4.18538372,193.92,193.84,2.75]
[1761378129555,0.34,193.92,193.84,2.75]
[1761378130051,4.18538372,193.92,193.84,2.75]
[1761378134055,3.84538372,193.92,193.84,2.75]
[1761378134362,4.41100266,193.93,193.84,2.75]
[1761378134363,3.84538372,193.93,193.84,2.75]
[1761378135064,3.84538372,193.93,193.85,2.86]
[1761378136264,3.84538372,193.92,193.85,2.86]
[1761378136466,3.84538372,193.93,193.85,2.86]
[1761378136667,3.84538372,193.92,193.85,2.86]
[1761378136871,3.84538372,193.93,193.85,2.86]
[1761378137165,3.84538372,193.92,193.85,2.86]
[1761378137468,3.84538372,193.93,193.86,2.86]
[1761378137770,3.84538372,193.92,193.86,2.86]
[1761378137960,0.34,193.95,193.86,2.86]
[1761378137961,3.84538372,193.94,193.86,2.86]
[1761378138159,3.84538372,193.93,193.86,2.86]
[1761378138359,3.84538372,193.92,193.86,2.86]
[1761378138561,3.84538372,193.93,193.87,2.86]
[1761378138867,3.84538372,193.94,193.87,2.86]
[1761378139268,3.84538372,193.95,193.88,2.86]
[1761378139462,3.84538372,193.94,193.88,2.86]
[1761378139671,3.84538372,193.95,193.88,2.86]
[1761378139966,3.84538372,193.97,193.88,2.86]
[1761378140162,3.84538372,193.96,193.88,2.86]
[1761378140367,8.2692237,193.98,193.9,2.86]
[1761378140570,3.87960259,193.97,193.9,2.86]
[1761378140771,3.87960259,193.96,193.9,2.86]
[1761378140957,3.87960259,193.98,193.9,2.86]
[1761378141161,3.87960259,193.97,193.9,2.86]
[1761378141362,3.87960259,193.96,193.9,2.86]
[1761378141667,3.87960259,193.98,193.9,2.86]
[1761378141863,3.87960259,193.97,193.9,2.86]
[1761378142070,3.87960259,193.96,193.9,2.86]
[1761378142369,3.87960259,193.95,193.9,2.86]
[1761378142562,3.87960259,193.98,193.9,2.86]
[1761378142872,3.87960259,193.97,193.9,2.86]
[1761378143062,3.87960259,193.96,193.9,2.86]
[1761378143368,4.21960259,193.95,193.9,2.86]
[1761378143667,0.34,193.93,193.9,2.86]
[1761378143868,0.34,193.93,193.87,4.6414]
[1761378143869,4.21960259,193.93,193.87,2.86]
[1761378144168,4.21960259,193.92,193.87,2.86]
[1761378144369,0.34,193.92,193.87,2.86]
[1761378145069,4.21960259,193.92,193.87,2.86]
[1761378145370,0.34,193.92,193.87,2.86]
[1761378145963,4.21960259,193.92,193.87,2.86]
[1761378146157,3.87960259,193.91,193.87,2.86]
[1761378147459,7.1360217,193.96,193.87,2.86]
[1761378147672,4.22319638,193.95,193.87,2.86]
[1761378147861,3.88319638,193.94,193.87,2.86]
[1761378148064,3.88319638,193.93,193.87,2.86]
[1761378148259,3.88319638,193.92,193.87,2.86]
[1761378148470,3.88319638,193.91,193.87,2.86]
[1761378148668,1.49804556,193.92,193.87,2.86]
[1761378148865,3.88319638,193.91,193.87,2.86]
[1761378150163,0.34,193.91,193.87,2.86]
[1761378150360,1.49804556,193.92,193.87,2.86]
[1761378150563,3.88393041,193.91,193.87,2.86]
[1761378150765,1.49804556,193.92,193.87,2.86]
[1761378150960,3.8839304,193.91,193.87,2.86]
[1761378151160,3.88377305,193.91,193.87,2.86]
[1761378151370,1.49804556,193.92,193.87,2.86]
[1761378151572,3.88382147,193.91,193.87,2.86]
[1761378151771,3.88365509,193.9,193.87,2.86]
[1761378151971,3.88365509,193.89,193.87,2.86]
[1761378152172,0.34,193.91,193.87,2.86]
[1761378152173,3.88365509,193.9,193.87,2.86]
[1761378152374,3.88365509,193.89,193.87,2.86]
[1761378152573,3.88365509,193.9,193.87,2.86]
[1761378152770,3.88365509,193.89,193.87,2.86]
[1761378152968,3.88365509,193.9,193.87,2.86]
[1761378153164,3.88365509,193.89,193.87,2.86]
[1761378153371,3.88365509,193.9,193.87,2.86]
[1761378153673,3.88365509,193.89,193.87,2.86]
[1761378153868,3.88365509,193.9,193.87,2.86]
[1761378154068,3.88365509,193.89,193.87,2.86]
[1761378154274,3.88365509,193.9,193.87,2.86]
[1761378154474,3.88365509,193.89,193.87,2.86]
[1761378154675,3.88365509,193.9,193.87,2.86]
[1761378154887,1.49804556,193.91,193.87,2.86]
[1761378155076,3.89147948,193.9,193.87,2.86]
[1761378155374,3.89174977,193.9,193.87,2.86]
[1761378156281,1.49804556,193.91,193.87,2.86]
[1761378156480,3.89180179,193.9,193.87,2.86]
[1761378156681,1.83804556,193.91,193.87,2.86]
[1761378156979,3.8918007,193.9,193.87,2.86]
[1761378157279,1.83804556,193.91,193.87,2.86]
[1761378157476,4.23194726,193.9,193.87,2.86]
[1761378157676,3.89194726,193.89,193.87,2.86]
[1761378158071,3.89194726,193.9,193.87,2.86]
[1761378158376,3.89194726,193.89,193.87,2.86]
[1761378158577,3.89194726,193.9,193.87,2.86]
[1761378158780,3.89194726,193.89,193.87,2.86]
[1761378158981,4.23194726,193.9,193.87,2.86]
[1761378159181,3.89194726,193.89,193.87,2.86]
[1761378160782,3.89194726,193.9,193.87,2.86]
[1761378161084,3.89194726,193.89,193.87,2.86]
[1761378161276,0.34,193.9,193.87,2.86]
[1761378161471,3.89256734,193.89,193.87,2.86]
[1761378161783,0.34,193.9,193.87,2.86]
[1761378161986,4.23256734,193.89,193.87,2.86]
[1761378162282,0.34,193.89,193.87,2.86]
[1761378162985,1.83804556,193.91,193.87,2.86]
[1761378163189,3.89268509,193.9,193.87,2.86]
[1761378163482,1.83804556,193.91,193.87,2.86]
[1761378163483,3.89268509,193.89,193.87,2.86]
[1761378163790,0.34,193.9,193.87,2.86]
[1761378163971,3.89282898,193.89,193.87,2.86]
[1761378164175,0.34,193.9,193.87,2.86]
[1761378164371,3.89297248,193.89,193.87,2.86]
[1761378164577,0.34,193.9,193.81,4.6428]
[1761378164777,1.49804556,193.88,193.82,2.85]
[1761378164976,3.89280922,193.87,193.82,2.85]
[1761378165781,1.49804556,193.88,193.82,2.85]
[1761378165983,1.49804556,193.88,193.83,2.85]
[1761378167980,1.83804556,193.88,193.83,2.85]
[1761378171077,1.49804556,193.85,193.78,4.6437]
[1761378171277,1.83804556,193.85,193.79,2.85]
[1761378174890,3.89161012,193.86,193.79,2.85]
[1761378175193,1.49804556,193.84,193.79,2.85]
[1761378176589,1.83804556,193.84,193.79,2.85]
[1761378180894,3.89084219,193.87,193.8,2.83]
[1761378181199,1.49804556,193.84,193.8,2.83]
[1761378181401,4.22084219,193.85,193.8,2.83]
[1761378181604,1.49804556,193.84,193.8,2.83]
[1761378182402,1.82804556,193.84,193.8,2.83]
[1761378183101,1.49804556,193.84,193.8,2.83]
[1761378187806,1.49804556,193.86,193.8,2.83]
[1761378190110,1.49804556,193.86,193.81,2.85]
[1761378190506,1.82804556,193.86,193.81,2.85]
[1761378191713,4.75883051,193.9,193.81,2.85]
[1761378191913,1.49804556,193.87,193.83,2.85]
[1761378192303,1.82804556,193.87,193.83,2.85]
[1761378193307,1.49804556,193.86,193.83,2.85]
[1761378193714,1.49804556,193.87,193.83,2.85]
[1761378193912,1.49804556,193.84,193.83,2.85]
[1761378199207,1.49804556,193.87,193.83,2.85]
[1761378199403,3.90403528,193.86,193.83,2.85]
[1761378199710,1.49804556,193.86,193.83,2.85]
[1761378201814,1.49804556,193.86,193.84,2.85]
[1761378202015,1.49804556,193.89,193.84,2.85]
[1761378202215,5.40321048,193.91,193.85,2.85]
[1761378202417,1.49804556,193.91,193.85,2.85]
[1761378203018,1.49804556,193.91,193.87,2.85]
[1761378204318,1.82804556,193.91,193.87,2.85]
[1761378204910,1.49804556,193.91,193.87,2.85]
[1761378208721,2.34069242,193.93,193.87,2.85]
[1761378209421,2.34069242,193.93,193.88,2.85]
[1761378210318,6.24146266,193.93,193.88,2.85]
[1761378210519,2.34069242,193.93,193.88,2.85]
[1761378210911,6.24065747,193.93,193.88,2.85]
[1761378211112,2.34069242,193.93,193.88,2.85]
[1761378211515,6.57065747,193.93,193.88,2.85]
[1761378211711,6.57065747,193.93,193.78,62.0]
[1761378211712,0.33,193.88,193.84,2.85]
[1761378212115,2.34069242,193.89,193.84,2.85]
[1761378214926,2.67069242,193.89,193.84,2.85]
[1761378218223,2.34069242,193.88,193.84,2.85]
[1761378224340,2.68069242,193.88,193.84,2.85]
[1761378225943,0.34,193.87,193.84,2.85]
[1761378229548,0.34,193.87,193.83,4.6424]
[1761378229843,0.34,193.87,193.81,7.4829]
[1761378230050,3.90086708,193.86,193.81,7.4829]
[1761378230253,0.34,193.85,193.81,7.4829]
[1761378230448,0.34,193.85,193.82,2.84]
[1761378233958,4.2431102,193.87,193.82,2.84]
[1761378234147,3.9031102,193.86,193.82,2.84]
[1761378234348,2.68069242,193.88,193.82,2.84]
[1761378234554,3.90319933,193.87,193.82,2.84]
[1761378234755,4.24319933,193.86,193.82,2.84]
[1761378234955,0.34,193.86,193.82,2.84]
[1761378239753,2.34069242,193.88,193.82,2.84]
[1761378239959,3.9028545,193.87,193.82,2.84]
[1761378240159,3.9028545,193.86,193.82,2.84]
[1761378240358,2.34069242,193.88,193.82,2.84]
[1761378240551,3.90280774,193.87,193.82,2.84]
[1761378240753,3.90280882,193.86,193.82,2.84]
[1761378241054,2.34069242,193.88,193.82,2.84]
[1761378241254,3.90280882,193.87,193.82,2.84]
[1761378241456,3.90280882,193.86,193.82,2.84]
[1761378241758,2.34069242,193.9,193.83,2.61]
[1761378241958,3.90343,193.89,193.83,2.61]
[1761378242160,2.34069242,193.9,193.79,60.54]
[1761378242161,2.34069242,193.9,193.86,2.61]
[1761378242556,6.24262614,193.9,193.86,2.61]
[1761378242755,2.34069242,193.9,193.86,2.61]
[1761378242951,2.34069242,193.9,193.87,2.61]
[1761378244165,3.90194949,193.92,193.87,2.61]
[1761378244367,3.90194949,193.93,193.87,2.61]
[1761378244561,3.90194949,193.92,193.88,4.6413]
[1761378244758,3.90194949,193.93,193.89,2.61]
[1761378245059,2.68069242,193.94,193.89,2.61]
[1761378245262,3.90153128,193.93,193.89,2.61]
[1761378245463,0.34,193.94,193.89,2.61]
[1761378245769,3.90163239,193.93,193.89,2.61]
[1761378246069,0.34,193.94,193.89,2.61]
[1761378246368,3.9016397,193.93,193.89,2.61]
[1761378246560,4.80903968,194.05,193.92,2.61]
[1761378246869,4.47834814,194.07,194.04,4.95069242]
[1761378247066,0.34,194.07,194.01,2.61]
[1761378247267,0.34,194.06,194.01,2.61]
[1761378251377,0.34,194.06,193.98,2.84]
[1761378261085,3.79173013,194.07,193.99,2.84]
[1761378261279,0.33,194.11,193.99,2.84]
[1761378262084,0.33,194.11,194.01,2.84]
[1761378262286,0.33,194.11,194.03,2.84]
[1761378266285,15.33,194.14,194.03,2.84]
[1761378266582,4.12173013,194.13,194.03,2.84]
[1761378266778,0.33,194.12,194.03,2.84]
[1761378268686,0.33,194.12,194.05,1.4949566]
[1761378268891,0.33,194.12,194.06,2.84]
[1761378279584,0.33,194.1,194.06,2.84]
[1761378283297,4.12173013,194.1,194.06,2.84]
[1761378284387,3.79173013,194.09,194.06,2.84]
[1761378284592,4.12173013,194.09,194.06,2.84]
[1761378284789,0.33,194.09,194.06,2.84]
[1761378285093,4.12173013,194.09,194.06,2.84]
[1761378285293,0.33,194.09,194.06,2.84]
[1761378285488,4.12173013,194.09,194.06,2.84]
[1761378285688,0.33,194.09,194.06,2.84]
[1761378285888,0.33,194.08,194.06,2.84]
[1761378286094,4.12173013,194.1,194.06,2.84]
[1761378286297,4.12173013,194.09,194.06,2.84]
[1761378286496,3.79173013,194.08,194.06,2.84]
[1761378286794,3.79173013,194.07,194.06,2.84]
[1761378286989,3.79173013,194.08,194.06,2.84]
[1761378287185,3.79173013,194.07,194.06,2.84]
[1761378287390,3.79173013,194.07,194.01,4.6382]
[1761378287688,3.79173013,194.06,194.02,2.69]
[1761378287882,3.79173013,194.08,194.02,2.69]
[1761378288085,4.12173013,194.07,194.02,2.69]
[1761378288284,3.79173013,194.06,194.02,2.69]
[1761378288487,3.79173013,194.05,194.02,2.69]
[1761378288686,3.79173013,194.08,194.02,2.69]
[1761378288890,3.79173013,194.07,194.02,2.69]
[1761378289099,3.79173013,194.06,194.02,2.69]
[1761378289397,3.79173013,194.05,194.02,2.69]
[1761378289597,3.79173013,194.08,194.02,2.69]
[1761378289796,3.79173013,194.07,194.02,2.69]
[1761378289998,3.79173013,194.06,194.02,2.69]
[1761378290295,3.79173013,194.05,194.02,2.69]
[1761378290596,3.79173013,194.04,194.02,2.69]
[1761378290795,3.79173013,194.08,194.02,2.69]
[1761378290998,3.79173013,194.07,194.02,2.69]
[1761378291201,3.79173013,194.06,194.02,2.69]
[1761378291492,3.79173013,194.05,194.02,2.69]
[1761378291699,3.79173013,194.04,194.02,2.69]
[1761378291905,4.80903968,194.08,194.02,2.69]
[1761378292100,3.80581071,194.07,194.02,2.69]
[1761378292296,3.80581071,194.06,194.02,2.69]
[1761378292496,3.80581071,194.05,194.02,2.69]
[1761378292798,3.80581071,194.04,194.02,2.69]
[1761378292994,4.80903968,194.08,194.02,2.69]
[1761378293194,3.80587697,194.07,194.02,2.69]
[1761378293395,3.80587697,194.06,194.02,2.69]
[1761378293594,3.80587697,194.05,194.02,2.69]
[1761378293895,3.80587697,194.04,194.02,2.69]
[1761378294094,4.80903968,194.08,194.02,2.69]
[1761378294396,3.80595245,194.07,194.02,2.69]
[1761378294596,3.80595245,194.06,194.02,2.69]
[1761378294797,3.80595245,194.05,194.02,2.69]
[1761378294995,3.80595245,194.04,194.02,2.69]
[1761378295198,3.80647286,194.07,194.03,2.69]
[1761378295397,3.80647286,194.06,194.03,2.69]
[1761378295599,3.80647286,194.05,194.03,2.69]
[1761378295790,3.80647286,194.04,194.03,2.69]
[1761378295989,3.80647286,194.08,194.03,2.69]
[1761378296190,3.80647286,194.07,194.03,2.69]
[1761378296393,3.80647286,194.06,194.03,2.69]
[1761378296701,3.80647286,194.05,194.03,2.69]
[1761378296905,3.80647286,194.04,194.03,2.69]
[1761378300508,3.80647286,194.04,193.99,2.68]
[1761378300707,3.80647286,194.03,193.99,2.68]
[1761378300907,3.80647286,194.02,193.99,2.68]
[1761378301099,3.80647286,194.01,193.99,2.68]
[1761378301296,5.13903968,194.05,193.99,2.68]
[1761378301599,0.33,194.03,193.95,2.68]
[1761378301807,5.63230946,194.02,193.95,2.68]
[1761378302003,3.80735286,194.01,193.95,2.68]
[1761378302202,3.80735286,194.0,193.95,2.68]
[1761378302408,3.80735286,193.99,193.95,2.68]
[1761378302601,0.33,194.02,193.95,2.68]
[1761378302794,3.81269583,194.01,193.95,2.68]
[1761378302993,3.81269583,194.0,193.95,2.68]
[1761378303198,3.81269583,193.99,193.95,2.68]
[1761378303398,0.33,194.02,193.95,2.68]
[1761378303599,3.81190496,194.01,193.96,2.68]
[1761378303798,3.81190496,194.0,193.96,2.68]
[1761378304014,4.80903968,194.04,193.96,2.68]
[1761378304305,3.81210584,194.03,193.98,2.68]
[1761378304509,6.30399628,194.07,193.98,2.68]
[1761378304699,3.8128915,194.06,193.98,2.68]
[1761378304901,3.8128915,194.05,193.98,7.3188]
[1761378305213,3.8128915,194.04,193.99,2.68]
[1761378305403,1.4949566,194.05,193.99,2.68]
[1761378305404,3.8128915,194.03,193.99,2.68]
[1761378305705,3.8128915,194.02,193.99,2.68]
[1761378305911,6.30399628,194.05,193.99,2.68]
[1761378305912,3.8128915,194.01,193.99,2.68]
[1761378306111,6.30399628,194.05,193.99,2.68]
[1761378306411,3.81240352,194.04,193.99,2.68]
[1761378306601,3.81240352,194.03,193.99,2.68]
[1761378306806,3.81240352,194.02,193.99,2.68]
[1761378307004,3.81240352,194.01,193.99,2.68]
[1761378307205,6.30399628,194.05,193.99,2.68]
[1761378307513,3.81193221,194.04,193.99,2.68]
[1761378307712,3.81193221,194.03,193.99,2.68]
[1761378308013,3.81193221,194.02,193.99,2.68]
[1761378308314,3.81193221,194.01,193.99,2.68]
[1761378308512,3.81193221,194.04,193.99,2.68]
[1761378308813,3.81193221,194.03,193.99,2.68]
[1761378309013,3.81193221,194.02,193.99,2.68]
[1761378309216,3.81136865,194.04,193.99,2.68]
[1761378309415,3.81136865,194.03,193.99,2.68]
[1761378309615,3.81136865,194.02,193.99,2.68]
[1761378309819,0.33,194.04,193.99,2.68]
[1761378310018,0.33,194.02,193.99,2.68]
[1761378310217,3.81050116,194.02,193.99,2.68]
[1761378310516,3.81050116,194.04,193.99,2.68]
[1761378310712,3.81050116,194.03,193.99,2.68]
[1761378310913,3.81050116,194.02,193.99,2.68]
[1761378311115,3.81050116,194.04,193.99,2.68]
[1761378311416,3.81050116,194.03,193.99,2.68]
[1761378311608,3.81050116,194.02,193.99,2.68]
[1761378311914,4.14050116,194.04,193.99,2.68]
[1761378312215,3.81050116,194.03,193.99,2.68]
[1761378312414,3.81050116,194.02,193.99,2.68]
[1761378312608,3.81050116,194.03,193.99,2.68]
[1761378312803,3.81050116,194.02,193.99,2.68]
[1761378313003,3.81050116,194.04,193.99,2.68]
[1761378313215,3.81050116,194.03,193.99,2.68]
[1761378313409,3.81050116,194.02,193.99,2.68]
[1761378313603,3.81050116,194.05,193.99,2.68]
[1761378313809,4.14050116,194.04,193.99,2.68]
[1761378314005,3.81050116,194.03,193.99,2.68]
[1761378314215,3.81050116,194.02,193.99,2.68]
[1761378314418,3.81050116,194.05,193.99,2.68]
[1761378314617,3.81050116,194.04,193.99,2.68]
[1761378314814,3.81050116,194.03,193.99,2.68]
[1761378315006,3.81050116,194.02,193.99,2.68]
[1761378315210,1.4949566,194.06,193.99,2.68]
[1761378315211,3.81050116,194.05,193.99,2.68]
[1761378315409,1.8249566,194.03,193.99,2.68]
[1761378315615,3.81050116,194.02,193.99,2.68]
[1761378315816,3.81050116,194.01,193.99,2.68]
[1761378316017,3.81050116,194.02,193.99,2.68]
[1761378316220,3.81050116,194.01,193.99,2.68]
[1761378316418,3.81050116,194.02,193.99,2.68]
[1761378316614,3.81050116,194.01,193.99,2.68]
[1761378316815,3.81050116,194.02,193.99,2.68]
[1761378317012,3.81050116,194.01,193.99,2.68]
[1761378317321,3.81050116,194.02,193.99,2.68]
[1761378317521,3.81050116,194.01,193.99,2.68]
[1761378317722,3.81050116,194.02,193.99,2.68]
[1761378317924,3.81050116,194.01,193.99,2.68]
[1761378318117,3.81050116,194.02,193.99,2.68]
[1761378318317,3.81050116,194.01,193.99,2.68]
[1761378318522,3.81050116,194.02,193.99,2.68]
[1761378318720,3.81050116,194.01,193.99,2.68]
[1761378318925,3.81050116,194.02,193.99,2.68]
[1761378319121,3.81050116,194.01,193.99,2.68]
[1761378319322,3.81050116,194.02,193.99,2.68]
[1761378319524,3.81050116,194.01,193.99,2.68]
[1761378319723,4.14050116,194.02,193.99,2.68]
[1761378319926,3.81050116,194.01,193.99,2.68]
[1761378320313,0.33,194.02,193.99,2.68]
[1761378320520,3.8111648,194.01,193.99,2.68]
[1761378320720,1.8249566,194.03,193.99,2.68]
[1761378320917,3.81116748,194.02,193.99,2.68]
[1761378321121,3.81116748,194.01,193.99,2.68]
[1761378321423,3.81116748,194.02,193.99,2.68]
[1761378321628,3.81116748,194.01,193.99,2.68]
[1761378321923,3.81116748,194.02,193.99,2.68]
[1761378322226,3.81188424,194.01,193.99,2.68]
[1761378322418,3.81188424,194.02,193.99,2.68]
[1761378322618,3.81188424,194.01,193.99,2.68]
[1761378322819,3.81188424,194.02,193.99,2.68]
[1761378323019,3.81188424,194.01,193.99,2.68]
[1761378323219,3.81188424,194.02,193.99,2.68]
[1761378323415,3.81188424,194.01,193.99,2.68]
[1761378323721,3.81188424,194.02,193.99,2.68]
[1761378323920,1.4949566,194.03,193.99,2.68]
[1761378324115,3.81253831,194.02,193.99,2.68]
[1761378324318,1.4949566,194.03,193.99,2.68]
[1761378324519,3.81267686,194.02,193.99,2.68]
[1761378324718,1.4949566,194.03,193.99,2.68]
[1761378324919,3.81267749,194.02,193.99,2.68]
[1761378325227,1.4949566,194.03,193.99,2.68]
[1761378325423,3.81275286,194.02,193.99,2.68]
[1761378325624,1.4949566,194.03,193.99,2.68]
[1761378325823,3.81275286,194.02,193.99,2.68]
[1761378326123,1.4949566,194.03,193.99,2.68]
[1761378326324,3.81292309,194.02,193.99,2.68]
[1761378326528,1.4949566,194.03,193.99,2.68]
[1761378326730,3.81300109,194.02,193.99,2.68]
[1761378327031,1.8249566,194.03,193.99,2.68]
[1761378327231,3.81300077,194.02,193.99,2.68]
[1761378327525,1.8249566,194.03,193.99,2.68]
[1761378327724,6.35903491,194.09,193.93,124.42]
[1761378327725,4.80903968,194.08,194.0,2.75]
[1761378327930,3.81366544,194.07,194.0,2.75]
[1761378328122,3.81366544,194.06,194.0,2.75]
[1761378328326,3.81366544,194.05,194.0,2.75]
[1761378328631,3.81366544,194.04,194.0,2.75]
[1761378328924,5.13903968,194.08,194.01,4.6381]
[1761378329134,4.14374708,194.07,194.02,2.75]
[1761378329325,3.81374708,194.06,194.02,2.75]
[1761378329629,3.81374708,194.05,194.02,2.75]
[1761378329831,3.81374708,194.04,194.02,2.75]
[1761378330031,4.80903968,194.08,194.03,2.75]
[1761378330231,4.14367847,194.07,194.03,2.75]
[1761378330430,3.81367847,194.06,194.03,2.75]
[1761378330623,3.81367847,194.05,194.03,2.75]
[1761378330826,3.81367847,194.04,194.03,2.75]
[1761378331022,3.81367847,194.06,194.03,2.75]
[1761378331233,3.81367847,194.05,194.03,2.75]
[1761378331426,3.81367847,194.04,194.03,2.75]
[1761378331631,3.81367847,194.06,194.03,2.75]
[1761378331830,3.81367847,194.05,194.03,2.75]